bitfinex/quotes_SOLUSD_20250403
["timestamp","ask_amount","ask_price","bid_price","bid_amount"]
[1743723028744,1.6271,116.86,116.82,14.9966041]
[1743723029047,1.6271,116.86,116.84,8.5587]
[1743723029344,1.6271,116.86,116.83,8.559]
[1743723033840,28.6485041,116.87,116.83,23.5556041]
[1743723034022,7.5,116.87,116.83,23.5556041]
[1743723034618,7.5,116.87,116.84,14.9966041]
[1743723034814,7.5,116.87,116.83,23.5556041]
[1743723036640,27.5,116.89,116.85,14.9966041]
[1743723037643,150.9966041,116.9,116.85,14.9966041]
[1743723037821,7.5,116.89,116.86,14.9966041]
[1743723038142,7.5,116.89,116.87,8.5565]
[1743723038728,136.0,116.9,116.87,23.5531041]
[1743723039314,22.4966041,116.92,116.87,23.5531041]
[1743723039518,7.5,116.92,116.89,14.9966041]
[1743723039713,14.9966041,116.93,116.89,14.9966041]
[1743723039932,14.9966041,116.93,116.9,8.5543]
[1743723040144,22.4966041,116.93,116.9,8.5543]
[1743723040643,158.4966041,116.94,116.9,8.5543]
[1743723041025,14.9966041,116.93,116.9,8.5543]
[1743723041343,143.5,116.94,116.9,8.5543]
[1743723041344,158.4966041,116.94,116.9,8.5543]
[1743723041524,136.0,116.94,116.9,23.5509041]
[1743723041719,23.5477041,116.95,116.9,23.5509041]
[1743723042032,22.4966041,116.95,116.9,8.5543]
[1743723042239,14.9966041,116.96,116.91,14.9966041]
[1743723042550,22.4966041,116.96,116.91,14.9966041]
[1743723042951,14.9966041,116.96,116.91,14.9966041]
[1743723043133,14.9966041,116.95,116.91,14.9966041]
[1743723043449,14.9966041,116.94,116.9,8.5543]
[1743723043749,14.9966041,116.95,116.9,23.5509041]
[1743723044450,23.5476041,116.95,116.9,23.5509041]
[1743723046349,23.5476041,116.95,116.9,25.0878041]
[1743723046653,23.5476041,116.95,116.9,31.4080041]
[1743723048854,31.0476041,116.95,116.9,31.4080041]
[1743723049675,22.4966041,116.95,116.9,31.4080041]
[1743723050141,31.0473041,116.95,116.9,31.4080041]
[1743723050341,156.14216157,116.99,116.92,14.9966041]
[1743723050538,7.48,116.99,116.95,14.9966041]
[1743723051152,20.28432314,117.01,116.95,14.9966041]
[1743723051153,137.6192,117.02,116.96,23.5465041]
[1743723051466,14.9966041,117.0,116.96,8.5499]
[1743723053774,14.9966041,117.01,116.96,23.5465041]
[1743723054275,0.14216157,116.95,116.89,7.5643]
[1743723054455,14.9966041,116.91,116.89,7.5643]
[1743723054761,7.48,116.9,116.86,31.1178041]
[1743723055567,7.48,116.9,116.86,16.1212]
[1743723055762,16.0343,116.9,116.86,7.5643]
[1743723055958,31.0309041,116.9,116.86,7.5643]
[1743723056167,14.9966041,116.89,116.86,7.5643]
[1743723057666,23.37850488,116.89,116.86,7.5643]
[1743723059744,31.93390488,116.89,116.86,7.5643]
[1743723060286,31.93360488,116.89,116.86,7.5643]
[1743723061467,31.93360488,116.89,116.84,31.93690488]
[1743723061468,23.37850488,116.87,116.83,26.21394886]
[1743723061658,23.37850488,116.85,116.83,1.5634]
[1743723062273,7.48,116.86,116.83,1.5634]
[1743723062455,7.48,116.86,116.83,24.94190488]
[1743723062650,7.48,116.86,116.83,33.50120488]
[1743723063162,7.48,116.86,116.84,23.37850488]
[1743723063665,7.48,116.86,116.83,33.50120488]
[1743723065669,7.48,116.86,116.83,10.1227]
[1743723065865,7.48,116.86,116.83,33.50120488]
[1743723066179,7.48,116.86,116.83,10.1227]
[1743723067372,7.48,116.86,116.83,33.50120488]
[1743723069189,7.48,116.86,116.83,10.1227]
[1743723069359,30.85850488,116.86,116.83,10.1227]
[1743723069561,7.48,116.86,116.83,10.1227]
[1743723070384,136.0,116.89,116.84,42.02815374]
[1743723070587,136.0,116.89,116.85,23.37850488]
[1743723071285,159.37850488,116.89,116.84,18.64964886]
[1743723071578,23.37850488,116.86,116.83,8.5593]
[1743723072156,23.37850488,116.86,116.82,27.20974886]
[1743723072358,23.37850488,116.86,116.82,50.58825374]
[1743723072679,23.37850488,116.86,116.82,27.20974886]
[1743723072881,23.37850488,116.86,116.82,50.58825374]
[1743723073175,23.37850488,116.86,116.82,27.20974886]
[1743723073381,30.87850488,116.87,116.82,50.58825374]
[1743723074377,39.43510488,116.87,116.82,50.58825374]
[1743723074580,23.37850488,116.86,116.82,27.20974886]
[1743723076070,23.37850488,116.86,116.82,8.5601]
[1743723076391,30.87850488,116.87,116.82,31.93860488]
[1743723076862,7.5,116.87,116.83,23.37850488]
[1743723078467,7.5,116.87,116.84,8.5587]
[1743723078973,30.87850488,116.9,116.85,23.37850488]
[1743723079171,23.37850488,116.9,116.85,23.37850488]
[1743723079373,30.87850488,116.91,116.85,23.37850488]
[1743723079773,22.45954223,116.91,116.85,33.60919109]
[1743723079974,14.95954223,116.91,116.86,14.95954223]
[1743723080177,7.5,116.91,116.86,14.95954223]
[1743723080377,22.45954223,116.91,116.87,8.5565]
[1743723081588,7.5,116.91,116.87,23.51604223]
[1743723081779,152.53614223,116.92,116.87,23.51604223]
[1743723081982,160.03614223,116.92,116.87,23.51604223]
[1743723083093,145.0766,116.92,116.87,23.51604223]
[1743723083287,158.45954223,116.92,116.87,23.51604223]
[1743723083594,22.45954223,116.92,116.87,23.51604223]
[1743723084694,14.95954223,116.91,116.86,44.90864223]
[1743723084999,22.45954223,116.92,116.87,14.95954223]
[1743723086283,14.95954223,116.92,116.87,14.95954223]
[1743723086470,22.45954223,116.92,116.88,8.5557]
[1743723088699,7.5,116.92,116.88,8.5557]
[1743723088905,22.45954223,116.92,116.88,8.5557]
[1743723089205,14.95954223,116.9,116.85,25.21614886]
[1743723089374,14.95954223,116.9,116.85,40.17569109]
[1743723090502,14.95954223,116.9,116.86,8.557]
[1743723093006,14.95954223,116.91,116.86,23.51654223]
[1743723094899,23.51314223,116.91,116.86,23.51654223]
[1743723095101,14.95954223,116.9,116.86,8.557]
[1743723095884,14.95954223,116.87,116.85,8.5576]
[1743723096088,14.95954223,116.87,116.82,6.1207]
[1743723096301,14.95954223,116.86,116.82,6.1207]
[1743723096703,14.95954223,116.87,116.82,21.08024223]
[1743723096913,23.51614223,116.87,116.83,8.559]
[1743723098110,14.95954223,116.86,116.82,8.5601]
[1743723098613,43.51614223,116.87,116.82,23.51964223]
[1743723098785,34.95954223,116.87,116.82,23.51964223]
[1743723098980,14.95954223,116.87,116.82,23.51964223]
[1743723099207,14.95954223,116.87,116.83,14.95954223]
[1743723100009,14.95954223,116.87,116.84,8.5587]
[1743723102723,158.72386537,116.88,116.84,8.5587]
[1743723106217,143.48,116.88,116.84,23.51824223]
[1743723106517,143.48,116.88,116.86,8.5572]
[1743723106701,7.48,116.88,116.86,8.5572]
[1743723106889,22.45954223,116.89,116.86,8.5572]
[1743723108206,31.01464223,116.89,116.85,8.5579]
[1743723108723,22.45954223,116.89,116.85,8.5579]
[1743723109396,7.5,116.89,116.85,23.51744223]
[1743723109899,22.45954223,116.89,116.85,23.51744223]
[1743723110414,22.45954223,116.89,116.85,8.5579]
[1743723111595,22.45954223,116.89,116.85,23.51744223]
[1743723113316,7.5,116.89,116.85,23.51744223]
[1743723113503,14.95954223,116.9,116.86,14.95954223]
[1743723113708,7.5,116.9,116.86,14.95954223]
[1743723114021,158.43954223,116.91,116.86,14.95954223]
[1743723114320,22.43954223,116.91,116.86,14.95954223]
[1743723114520,7.48,116.91,116.87,8.5565]
[1743723114713,28.29134266,116.93,116.89,14.95954223]
[1743723116017,14.95954223,116.93,116.9,8.5543]
[1743723116209,160.00014223,116.94,116.9,8.5543]
[1743723116415,152.52014223,116.94,116.9,8.5543]
[1743723116598,160.00014223,116.94,116.9,8.5543]
[1743723118421,14.95954223,116.93,116.9,8.5543]
[1743723118614,14.95954223,116.93,116.88,8.5557]
[1743723118615,14.95954223,116.91,116.88,8.5557]
[1743723119300,14.95954223,116.9,116.85,20.21274886]
[1743723119628,14.95954223,116.9,116.86,8.5568]
[1743723119929,22.43954223,116.9,116.86,8.5568]
[1743723120726,30.99384223,116.9,116.86,8.5568]
[1743723121243,22.43954223,116.9,116.86,8.5568]
[1743723122023,22.43954223,116.9,116.86,23.51634223]
[1743723122425,22.43954223,116.9,116.86,8.5568]
[1743723122729,30.99384223,116.9,116.86,8.5568]
[1743723123227,30.99384223,116.9,116.85,25.08024223]
[1743723123522,14.95954223,116.89,116.85,25.08024223]
[1743723123828,14.95954223,116.87,116.82,1.5631]
[1743723124138,7.48,116.86,116.83,8.5591]
[1743723124343,7.48,116.86,116.83,23.51864223]
[1743723124843,7.48,116.86,116.83,8.5591]
[1743723127930,7.48,116.86,116.83,23.51864223]
[1743723128453,7.48,116.86,116.83,8.5591]
[1743723130943,7.48,116.86,116.83,23.51864223]
[1743723132846,7.48,116.86,116.83,8.5591]
[1743723135652,7.48,116.86,116.83,23.51864223]
[1743723136052,22.43954223,116.86,116.83,8.5591]
[1743723136649,7.48,116.86,116.83,8.5591]
[1743723142552,7.48,116.86,116.83,23.51864223]
[1743723142870,7.48,116.86,116.84,14.95954223]
[1743723143425,136.0,116.88,116.85,14.95954223]
[1743723143625,7.48,116.89,116.85,14.95954223]
[1743723144250,22.43954223,116.89,116.84,33.60919109]
[1743723144834,22.43954223,116.89,116.85,8.5579]
[1743723145034,22.43954223,116.89,116.85,23.51744223]
[1743723145755,22.43954223,116.89,116.85,8.5579]
[1743723150256,30.99474223,116.89,116.85,8.5579]
[1743723153866,14.95954223,116.88,116.85,8.5579]
[1743723154178,14.95954223,116.87,116.82,33.60919109]
[1743723155273,23.51534223,116.88,116.83,8.559]
[1743723155770,14.95954223,116.87,116.83,8.559]
[1743723158268,14.95954223,116.88,116.83,23.51854223]
[1743723159655,163.48,116.89,116.85,14.95954223]
[1743723159853,27.48,116.89,116.85,14.95954223]
[1743723160942,7.48,116.89,116.85,14.95954223]
[1743723161462,7.48,116.89,116.86,8.5572]
[1743723165966,30.99464223,116.89,116.85,8.5575]
[1743723166577,30.99464223,116.89,116.84,10.1182]
[1743723166779,30.99464223,116.89,116.84,25.07774223]
[1743723167372,14.95954223,116.88,116.84,1.5599]
[1743723167555,14.95954223,116.88,116.83,8.559]
[1743723168564,36.0351,116.89,116.83,23.51854223]
[1743723168750,186.99464223,116.89,116.83,23.51854223]
[1743723169765,186.99464223,116.89,116.83,44.91714223]
[1743723171867,172.0351,116.89,116.83,44.91714223]
[1743723172074,163.48,116.89,116.84,14.95954223]
[1743723172260,178.43954223,116.89,116.84,14.95954223]
[1743723172460,178.43954223,116.89,116.83,44.91714223]
[1743723172774,186.99474223,116.89,116.83,44.91714223]
[1743723173184,143.48,116.89,116.85,1.582]
[1743723173357,136.0,116.89,116.85,16.54154223]
[1743723174075,136.0,116.89,116.86,8.5572]
[1743723174452,22.43954223,116.9,116.86,8.5572]
[1743723174648,30.99384223,116.9,116.86,8.5572]
[1743723182291,14.95954223,116.89,116.86,8.5572]
[1743723182967,23.51484223,116.89,116.85,16.5609]
[1743723183176,14.95954223,116.88,116.85,16.5609]
[1743723183589,14.95954223,116.89,116.85,16.5609]
[1743723185767,7.48,116.9,116.85,52.91534223]
[1743723185967,22.43954223,116.9,116.85,52.91534223]
[1743723187703,7.48,116.9,116.86,14.95954223]
[1743723188186,164.30182318,116.91,116.86,14.95954223]
[1743723188395,171.78182318,116.91,116.86,14.95954223]
[1743723189595,14.95954223,116.9,116.86,8.5572]
[1743723192491,22.43954223,116.9,116.86,8.5572]
[1743723193506,7.48,116.9,116.86,44.90984223]
[1743723193669,75.41286979,116.93,116.88,14.95954223]
[1743723193867,75.41286979,116.93,116.86,29.9503]
[1743723193868,13.34228095,116.92,116.9,23.51384223]
[1743723194291,13.34228095,116.92,116.91,14.95954223]
[1743723194490,13.34228095,116.92,116.9,23.51384223]
[1743723196791,23.51014223,116.95,116.9,23.51384223]
[1743723196995,14.95954223,116.94,116.9,23.51384223]
[1743723197593,14.95954223,116.93,116.89,31.24164223]
[1743723198464,23.51124223,116.94,116.89,31.24164223]
[1743723200310,14.95954223,116.94,116.89,31.24164223]
[1743723200512,22.43954223,116.95,116.9,14.95954223]
[1743723201309,160.49751355,116.97,116.92,14.95954223]
[1743723201310,22.43954223,116.96,116.92,14.95954223]
[1743723201488,22.43954223,116.96,116.91,14.95954223]
[1743723202195,30.98954223,116.96,116.92,8.5528]
[1743723203685,22.43954223,116.96,116.92,8.5528]
[1743723203888,14.95954223,116.98,116.93,14.95954223]
[1743723204093,189.36912381,116.99,116.94,14.95954223]
[1743723204304,189.36912381,116.99,116.93,8.1039]
[1743723204305,53.36912381,116.99,116.95,14.95954223]
[1743723204897,53.36912381,116.99,116.97,14.95954223]
[1743723205092,53.36912381,116.99,116.98,14.95954223]
[1743723205313,13.34228095,117.02,116.98,14.95954223]
[1743723205498,20.82228095,117.02,116.98,14.95954223]
[1743723205823,14.95954223,117.02,116.99,8.5477]
[1743723205990,155.86235176,117.03,116.99,8.5477]
[1743723206688,133.42280953,117.03,116.99,8.5477]
[1743723207008,148.38235176,117.03,116.99,8.5477]
[1743723207507,148.38235176,117.03,116.98,10.104]
[1743723207508,14.95954223,117.02,116.98,10.104]
[1743723208008,14.95954223,117.01,116.98,1.556]
[1743723208313,14.95954223,117.01,116.97,8.5488]
[1743723209518,14.95954223,117.01,116.95,22.9319]
[1743723209519,20.0,116.97,116.91,8.5535]
[1743723209707,14.95954223,116.94,116.91,8.5535]
[1743723210093,14.95954223,116.95,116.91,8.5535]
[1743723211611,23.51044223,116.95,116.91,8.5535]
[1743723211909,14.95954223,116.92,116.86,31.62034223]
[1743723212214,22.43954223,116.91,116.86,31.62034223]
[1743723213490,30.99354223,116.91,116.86,31.62034223]
[1743723213911,150.95954223,116.93,116.88,14.95954223]
[1743723214211,7.48,116.92,116.88,14.95954223]
[1743723216713,7.48,116.92,116.89,8.555]
[1743723218895,7.48,116.92,116.89,31.91825443]
[1743723219915,136.0,116.97,116.91,23.36325443]
[1743723220117,7.48,116.96,116.93,23.36325443]
[1743723220417,7.48,116.96,116.92,23.36325443]
[1743723220716,30.84325443,116.96,116.92,23.36325443]
[1743723221620,30.84325443,116.96,116.92,8.5528]
[1743723222411,30.84325443,116.96,116.93,23.36325443]
[1743723222412,7.48,116.96,116.93,23.36325443]
[1743723223716,7.48,116.96,116.94,8.5513]
[1743723224609,7.48,116.96,116.93,8.5517]
[1743723225120,7.48,116.96,116.93,31.91495443]
[1743723225437,143.48,116.99,116.95,23.36325443]
[1743723225633,7.48,116.99,116.95,23.36325443]
[1743723226307,192.27722565,117.04,116.97,23.36325443]
[1743723226518,23.36325443,117.01,116.97,23.36325443]
[1743723226821,23.36325443,117.0,116.96,8.5499]
[1743723227019,156.0,117.02,116.96,8.5499]
[1743723227020,30.84325443,116.99,116.96,8.5499]
[1743723227702,30.84325443,116.99,116.95,8.5502]
[1743723228932,7.48,116.99,116.96,23.36325443]
[1743723229119,7.48,116.99,116.95,53.29005443]
[1743723232734,7.48,116.99,116.95,31.91345443]
[1743723232919,30.84325443,116.99,116.95,31.91345443]
[1743723233119,39.39105443,116.99,116.95,8.5502]
[1743723233318,23.36325443,116.97,116.91,29.2911]
[1743723233536,23.36325443,116.96,116.91,52.65435443]
[1743723234038,136.0,116.98,116.94,23.36325443]
[1743723234244,7.48,116.99,116.95,23.36325443]
[1743723234451,7.48,116.99,116.96,8.5499]
[1743723234612,7.48,116.99,116.96,31.91315443]
[1743723235330,7.48,116.99,116.96,53.28795443]
[1743723236545,23.36325443,117.01,116.96,53.28795443]
[1743723236752,30.90325443,117.01,116.96,53.28795443]
[1743723237737,14.93301858,117.01,116.96,14.93301858]
[1743723238157,150.93301858,117.02,116.97,41.32436744]
[1743723238339,158.45301858,117.02,116.97,41.32436744]
[1743723238541,14.93301858,117.02,116.98,14.93301858]
[1743723238742,156.0,117.04,116.99,14.93301858]
[1743723238934,150.93301858,117.05,117.0,14.93301858]
[1743723239136,156.0,117.06,117.01,14.93301858]
[1743723239339,14.93301858,117.05,117.0,14.93301858]
[1743723239648,23.31562589,117.05,117.0,23.31562589]
[1743723239864,23.31562589,117.04,117.0,23.31562589]
[1743723240041,23.31562589,117.03,116.98,31.86402589]
[1743723240248,23.31562589,117.02,116.98,8.5484]
[1743723240441,23.31562589,117.01,116.97,16.2905]
[1743723241434,23.31562589,117.0,116.97,16.2905]
[1743723241766,23.31562589,117.0,116.96,8.5495]
[1743723242056,163.66,117.02,116.96,8.5495]
[1743723242057,23.31562589,116.99,116.96,8.5495]
[1743723243857,31.86342589,116.99,116.95,8.5504]
[1743723244542,23.31562589,116.99,116.95,8.5504]
[1743723245270,23.31562589,116.99,116.95,31.86602589]
[1743723245572,31.86342589,116.99,116.95,8.5504]
[1743723245941,16.1872,117.0,116.95,8.5504]
[1743723246142,23.31562589,116.99,116.95,8.5504]
[1743723246563,23.31562589,116.99,116.95,31.86602589]
[1743723248275,16.1872,117.0,116.95,31.86602589]
[1743723248478,30.95562589,117.0,116.95,31.86602589]
[1743723248878,7.64,117.0,116.95,31.86602589]
[1743723249079,30.95562589,117.0,116.95,31.86602589]
[1743723249445,39.50262589,117.0,116.95,31.86602589]
[1743723249641,30.95562589,117.0,116.95,31.86602589]
[1743723249939,23.31562589,116.99,116.95,31.86602589]
[1743723252454,30.95562589,117.0,116.95,31.86602589]
[1743723252647,7.64,117.0,116.96,23.31562589]
[1743723252858,136.0,117.01,116.97,23.31562589]
[1743723253165,159.31562589,117.01,116.96,41.96527475]
[1743723254471,159.31562589,117.01,116.97,8.5492]
[1743723255368,23.31562589,117.0,116.96,8.5495]
[1743723255674,23.31562589,116.99,116.95,8.5505]
[1743723256865,31.86332589,116.99,116.95,8.5505]
[1743723257252,23.31562589,116.99,116.95,8.5505]
[1743723257452,23.31562589,116.99,116.95,31.86612589]
[1743723257648,159.31562589,117.01,116.96,23.31562589]
[1743723258469,159.31562589,117.01,116.97,8.5492]
[1743723259076,136.0,117.01,116.97,8.5492]
[1743723259376,136.0,117.01,116.97,31.86482589]
[1743723259854,23.31562589,117.02,116.97,53.23782589]
[1743723260950,23.31562589,117.01,116.97,29.9222]
[1743723261766,23.31562589,117.0,116.97,8.5492]
[1743723263253,23.31562589,117.01,116.97,8.5492]
[1743723264680,23.31562589,117.02,116.97,23.31562589]
[1743723264976,23.31562589,117.01,116.96,44.68942589]
[1743723265473,144.5451,117.03,116.97,23.31562589]
[1743723265681,23.31562589,117.02,116.97,23.31562589]
[1743723265982,23.31562589,117.01,116.96,44.68942589]
[1743723266993,23.31562589,117.02,116.97,23.31562589]
[1743723268091,23.31562589,117.02,116.98,8.5484]
[1743723268695,20.0,117.06,116.99,30.98452589]
[1743723268862,30.93562589,117.05,117.0,41.96527475]
[1743723269275,23.31562589,117.04,117.0,41.96527475]
[1743723270184,23.31562589,117.04,117.01,8.5462]
[1743723271490,16.1626,117.06,117.0,8.5466]
[1743723271491,23.31562589,117.03,117.0,8.5466]
[1743723271661,144.5433,117.05,117.0,8.5466]
[1743723271858,23.31562589,117.03,117.0,8.5466]
[1743723272062,136.0,117.05,117.0,31.86222589]
[1743723272494,159.31562589,117.05,117.0,31.86222589]
[1743723272694,136.0,117.05,117.01,23.31562589]
[1743723273389,136.0,117.05,117.02,8.5455]
[1743723273596,159.31562589,117.05,117.02,8.5455]
[1743723273966,23.31562589,117.04,117.02,8.5455]
[1743723274275,23.31562589,117.03,116.99,7.6689]
[1743723274484,23.31562589,117.02,116.99,16.2162]
[1743723274788,23.31562589,117.03,116.99,16.2162]
[1743723274967,144.5435,117.05,116.99,16.2162]
[1743723275162,23.31562589,117.03,116.99,16.2162]
[1743723276300,23.31562589,117.03,116.99,37.5855]
[1743723277190,23.31562589,117.05,117.0,23.31562589]
[1743723278276,23.31562589,117.05,117.02,8.5455]
[1743723278683,149.33492565,117.09,117.04,23.31562589]
[1743723278864,13.33492565,117.09,117.04,23.31562589]
[1743723279065,13.33492565,117.09,117.06,23.31562589]
[1743723279284,13.33492565,117.09,117.05,23.31562589]
[1743723279586,23.31562589,117.08,117.04,18.64964886]
[1743723279797,23.31562589,117.08,117.03,31.35532589]
[1743723280176,23.31562589,117.07,117.03,8.0397]
[1743723280375,23.31562589,117.06,117.03,16.584]
[1743723280577,23.31562589,117.05,117.03,16.584]
[1743723280774,23.31562589,117.05,117.02,8.5454]
[1743723281975,23.31562589,117.05,117.01,8.5462]
[1743723282495,172.1823,117.07,117.01,31.86182589]
[1743723282674,23.31562589,117.05,117.01,31.86182589]
[1743723284989,186.95562589,117.07,117.02,23.31562589]
[1743723285370,166.95562589,117.07,117.03,8.5448]
[1743723285973,7.64,117.07,117.03,31.86042589]
[1743723286371,30.95562589,117.07,117.03,8.5448]
[1743723288383,28.5408,117.09,117.05,23.31562589]
[1743723288384,23.31562589,117.09,117.05,23.31562589]
[1743723288573,30.91562589,117.1,117.05,23.31562589]
[1743723289296,196.00477695,117.14,117.08,23.31562589]
[1743723289486,30.91562589,117.13,117.08,23.31562589]
[1743723289685,30.91562589,117.13,117.09,8.5404]
[1743723290108,39.45322589,117.13,117.09,8.5404]
[1743723290421,23.31562589,117.12,117.09,8.5404]
[1743723291427,23.31562589,117.12,117.08,8.5411]
[1743723294789,152.1376,117.13,117.08,8.5411]
[1743723295005,166.91562589,117.13,117.08,31.85672589]
[1743723295206,143.6,117.13,117.08,31.85672589]
[1743723295399,166.91562589,117.13,117.08,31.85672589]
[1743723295713,23.31562589,117.12,117.06,29.3944]
[1743723295900,23.31562589,117.07,117.03,8.5448]
[1743723300412,23.31562589,117.07,117.03,29.9068]
[1743723303420,159.31562589,117.08,117.03,53.22242589]
[1743723303603,136.0,117.08,117.05,29.9016]
[1743723304014,23.31562589,117.09,117.05,29.9016]
[1743723304716,7.56,117.1,117.05,29.9016]
[1743723304916,7.56,117.1,117.05,53.21722589]
[1743723305120,23.31562589,117.09,117.05,29.9016]
[1743723306124,20.0,117.14,117.08,23.31562589]
[1743723306320,136.0,117.15,117.1,23.31562589]
[1743723306512,159.31562589,117.15,117.1,23.31562589]
[1743723306712,23.31562589,117.13,117.08,41.96527475]
[1743723307125,23.31562589,117.12,117.07,29.97902589]
[1743723307331,23.31562589,117.11,117.07,29.97902589]
[1743723307505,23.31562589,117.12,117.07,29.97902589]
[1743723307910,23.31562589,117.12,117.08,29.894]
[1743723308226,136.0,117.14,117.08,29.894]
[1743723308411,23.31562589,117.12,117.08,29.894]
[1743723309213,23.31562589,117.12,117.08,8.5411]
[1743723310540,20.0,117.13,117.08,8.5411]
[1743723310730,23.31562589,117.12,117.08,8.5411]
[1743723311840,23.31562589,117.12,117.08,29.894]
[1743723312048,23.31562589,117.12,117.08,53.20962589]
[1743723312211,23.31562589,117.12,117.08,29.894]
[1743723313515,23.31562589,117.1,117.07,8.5417]
[1743723314342,159.31562589,117.11,117.07,8.5417]
[1743723315033,23.31562589,117.1,117.07,8.5417]
[1743723315240,23.31562589,117.1,117.06,10.0782]
[1743723315553,23.31562589,117.09,117.06,10.0782]
[1743723316040,23.31562589,117.1,117.06,33.39382589]
[1743723316239,23.31562589,117.1,117.06,54.75032589]
[1743723316439,159.31562589,117.11,117.06,54.75032589]
[1743723316632,7.56,117.12,117.07,41.96527475]
[1743723316847,23.31562589,117.13,117.08,23.31562589]
[1743723317323,23.31562589,117.13,117.09,23.31562589]
[1743723317525,23.31562589,117.14,117.09,23.31562589]
[1743723318149,23.31562589,117.14,117.1,8.5397]
[1743723318550,172.0957,117.16,117.1,29.8889]
[1743723318925,23.31562589,117.14,117.1,29.8889]
[1743723319429,172.0957,117.16,117.1,29.8889]
[1743723319652,23.31562589,117.14,117.1,29.8889]
[1743723320148,23.31562589,117.14,117.1,53.20452589]
[1743723322051,23.31562589,117.14,117.1,29.8889]
[1743723323452,23.31562589,117.14,117.1,53.20452589]
[1743723324451,136.0,117.16,117.1,53.20452589]
[1743723324647,23.31562589,117.15,117.1,53.20452589]
[1743723326250,7.56,117.17,117.11,24.91782589]
[1743723326552,23.31562589,117.16,117.11,24.91782589]
[1743723326754,23.31562589,117.15,117.12,8.5382]
[1743723326952,23.31562589,117.14,117.11,10.1407]
[1743723327941,23.31562589,117.13,117.11,1.6022]
[1743723328452,23.31562589,117.13,117.1,8.5394]
[1743723328628,7.6,117.13,117.08,10.143]
[1743723328828,166.91562589,117.13,117.08,52.10827475]
[1743723329236,166.91562589,117.13,117.08,73.46117475]
[1743723329436,166.91562589,117.13,117.08,50.14554886]
[1743723329656,166.91562589,117.13,117.08,73.46117475]
[1743723330425,143.6,117.13,117.08,73.46117475]
[1743723330631,166.91562589,117.13,117.09,23.31562589]
[1743723330838,166.91562589,117.13,117.1,8.5397]
[1743723331751,158.49974947,117.13,117.1,8.5397]
[1743723332856,7.6,117.13,117.1,8.5397]
[1743723333154,22.49974947,117.13,117.1,8.5397]
[1743723333658,7.6,117.13,117.1,8.5397]
[1743723334242,14.89974947,117.14,117.1,29.8889]
[1743723335136,150.89974947,117.15,117.1,44.78864947]
[1743723335340,136.0,117.15,117.11,14.89974947]
[1743723335635,22.47974947,117.16,117.11,14.89974947]
[1743723335829,14.89974947,117.15,117.1,44.78864947]
[1743723336640,157.6538,117.18,117.11,14.89974947]
[1743723336843,157.6538,117.18,117.13,14.89974947]
[1743723336844,22.47974947,117.18,117.13,14.89974947]
[1743723337044,22.47974947,117.18,117.12,44.78354947]
[1743723337045,14.89974947,117.17,117.12,44.78354947]
[1743723338854,22.47974947,117.18,117.13,14.89974947]
[1743723339157,22.47974947,117.18,117.14,8.5367]
[1743723339332,14.89974947,117.18,117.14,8.5367]
[1743723340351,14.89974947,117.18,117.14,29.8786]
[1743723340836,14.89974947,117.18,117.14,8.5367]
[1743723342959,14.89974947,117.16,117.13,1.6453]
[1743723343159,28.5341,117.18,117.13,1.6453]
[1743723343360,14.89974947,117.16,117.13,1.6453]
[1743723343773,28.5341,117.18,117.13,1.6453]
[1743723343958,14.89974947,117.16,117.13,1.6453]
[1743723344848,14.89974947,117.16,117.13,10.1826]
[1743723347070,14.89974947,117.16,117.13,1.6453]
[1743723348047,136.0,117.17,117.13,25.08234947]
[1743723349845,150.89974947,117.17,117.13,10.1826]
[1743723350441,14.89974947,117.17,117.13,10.1826]
[1743723351171,7.58,117.18,117.13,10.1826]
[1743723351371,14.89974947,117.17,117.13,10.1826]
[1743723352450,14.89974947,117.14,117.11,6.3953]
[1743723352657,14.89974947,117.13,117.1,10.1194]
[1743723353274,14.89974947,117.13,117.1,1.5801]
[1743723353973,14.89974947,117.13,117.1,10.1197]
[1743723356967,158.49974947,117.14,117.1,10.1197]
[1743723359076,158.51974947,117.14,117.1,10.1197]
[1743723359979,143.62,117.14,117.1,25.01944947]
[1743723360279,158.51974947,117.14,117.1,10.1197]
[1743723360790,143.62,117.14,117.1,10.1197]
[1743723360960,158.51974947,117.14,117.1,10.1197]
[1743723362181,14.89974947,117.13,117.1,10.1197]